[Event "Titled Tuesday Blitz May 03 Early 2022"]
[White "Toncheva, Nadya"]
[Black "Zemlyanskii, Ivan"]
[WhiteFideId "2924056"]
[BlackFideId "24249971"]
[WhiteElo "1884"]
[BlackElo "1759"]
[Result "0-1"]
[Round "03"]
[TimeControl "180+1"]
[Date "2022.05.03"]
[WhiteClock "0:00:03"]
[BlackClock "0:00:05"]

1. e4 {[%clk 0:03:00]}  c5 {[%clk 0:02:59]} 2. c3 {[%clk 0:03:00]}  d5 {[%clk 0:02:55]} 3. exd5 {[%clk 0:03:00]}  Qxd5 {[%clk 0:02:55]} 4. Nf3 {[%clk 0:03:01]}  Nf6 {[%clk 0:02:55]} 5. d4 {[%clk 0:03:00]}  e6 {[%clk 0:02:54]} 6. Na3 {[%clk 0:02:59]}  Qd8 {[%clk 0:02:53]} 7. Bf4 {[%clk 0:02:36]}  Nc6 {[%clk 0:02:44]} 8. dxc5 {[%clk 0:01:49]}  Nd5 {[%clk 0:02:25]} 9. Bg3 {[%clk 0:01:33]}  Bxc5 {[%clk 0:02:24]} 10. Nc4 {[%clk 0:01:26]}  O-O {[%clk 0:02:18]} 11. Be2 {[%clk 0:01:21]}  f6 {[%clk 0:01:59]} 12. O-O {[%clk 0:01:18]}  e5 {[%clk 0:01:59]} 13. Qb3 {[%clk 0:00:56]}  Rb8 {[%clk 0:01:32]} 14. Rfd1 {[%clk 0:00:53]}  Be6 {[%clk 0:01:32]} 15. Ne3 {[%clk 0:00:43]}  Bxe3 {[%clk 0:01:26]} 16. fxe3 {[%clk 0:00:42]}  Qe7 {[%clk 0:01:26]} 17. Rxd5 {[%clk 0:00:31]}  Bxd5 {[%clk 0:01:10]} 18. Qxd5+ {[%clk 0:00:32]}  Kh8 {[%clk 0:01:10]} 19. e4 {[%clk 0:00:28]}  Rfd8 {[%clk 0:01:08]} 20. Qb3 {[%clk 0:00:25]}  b5 {[%clk 0:01:03]} 21. Bf2 {[%clk 0:00:24]}  b4 {[%clk 0:01:01]} 22. c4 {[%clk 0:00:23]}  Na5 {[%clk 0:00:54]} 23. Qe3 {[%clk 0:00:23]}  b3 {[%clk 0:00:46]} 24. axb3 {[%clk 0:00:22]}  Rxb3 {[%clk 0:00:47]} 25. Qxa7 {[%clk 0:00:21]}  Qxa7 {[%clk 0:00:37]} 26. Bxa7 {[%clk 0:00:22]}  Rxb2 {[%clk 0:00:35]} 27. Kf1 {[%clk 0:00:21]}  Nb3 {[%clk 0:00:31]} 28. Rd1 {[%clk 0:00:20]}  Ra8 {[%clk 0:00:30]} 29. c5 {[%clk 0:00:14]}  h6 {[%clk 0:00:27]} 30. Bb6 {[%clk 0:00:14]}  Raa2 {[%clk 0:00:24]} 31. Re1 {[%clk 0:00:10]}  Rc2 {[%clk 0:00:22]} 32. Nh4 {[%clk 0:00:03]}  Nd2+ {[%clk 0:00:20]} 33. Kg1 {[%clk 0:00:03]}  g5 {[%clk 0:00:14]} 34. Nf5 {[%clk 0:00:02]}  Nxe4 {[%clk 0:00:15]} 35. Bf3 {[%clk 0:00:03]}  Nxc5 {[%clk 0:00:12]} 36. Bxc5 {[%clk 0:00:03]}  Rxc5 {[%clk 0:00:13]} 37. Re2 {[%clk 0:00:03]}  Ra1+ {[%clk 0:00:11]} 38. Kf2 {[%clk 0:00:03]}  Kg8 {[%clk 0:00:10]} 39. g4 {[%clk 0:00:04]}  Kf7 {[%clk 0:00:09]} 40. Nxh6+ {[%clk 0:00:04]}  Ke6 {[%clk 0:00:09]} 41. Nf5 {[%clk 0:00:05]}  Rcc1 {[%clk 0:00:09]} 42. Rb2 {[%clk 0:00:04]}  Rf1+ {[%clk 0:00:08]} 43. Kg2 {[%clk 0:00:05]}  Rfc1 {[%clk 0:00:04]} 44. Kf2 {[%clk 0:00:04]}  Kd7 {[%clk 0:00:04]} 45. Rb7+ {[%clk 0:00:04]}  Kc8 {[%clk 0:00:03]} 46. Re7 {[%clk 0:00:04]}  Rc2+ {[%clk 0:00:03]} 47. Kg3 {[%clk 0:00:03]}  Rg1+ {[%clk 0:00:04]} 48. Kh3 {[%clk 0:00:03]}  Rf1 {[%clk 0:00:04]} 49. Kg3 {[%clk 0:00:03]}  Rc3 {[%clk 0:00:05]} 50. Re8+ {[%clk 0:00:02]}  Kd7 {[%clk 0:00:05]} 51. Re7+ {[%clk 0:00:03]}  Kd8 {[%clk 0:00:05]} 0-1


[Site "https://www.chess.com"]

[Event "Titled Tuesday Blitz May 03 Early 2022"]
[White "Tristan, Leonardo"]
[Black "YoreDea"]
[WhiteFideId "113816"]
[WhiteElo "2404"]
[BlackElo "2497"]
[Result "1-0"]
[Round "03"]
[TimeControl "180+1"]
[Date "2022.05.03"]
[WhiteClock "0:01:30"]
[BlackClock "0:00:50"]

1. d4 {[%clk 0:03:00]}  d5 {[%clk 0:02:48]} 2. Nf3 {[%clk 0:03:01]}  c6 {[%clk 0:02:46]} 3. Bf4 {[%clk 0:03:01]}  Bf5 {[%clk 0:02:44]} 4. e3 {[%clk 0:03:01]}  Nf6 {[%clk 0:02:42]} 5. c4 {[%clk 0:03:01]}  Bxb1 {[%clk 0:02:38]} 6. Qxb1 {[%clk 0:02:57]}  e5 {[%clk 0:02:29]} 7. Nxe5 {[%clk 0:02:52]}  Bb4+ {[%clk 0:02:27]} 8. Kd1 {[%clk 0:02:52]}  dxc4 {[%clk 0:02:17]} 9. Bxc4 {[%clk 0:02:51]}  O-O {[%clk 0:02:15]} 10. Ke2 {[%clk 0:02:51]}  Nbd7 {[%clk 0:02:15]} 11. Rd1 {[%clk 0:02:50]}  Qe7 {[%clk 0:02:10]} 12. Qf5 {[%clk 0:02:45]}  Rae8 {[%clk 0:02:06]} 13. Kf1 {[%clk 0:02:42]}  Bd6 {[%clk 0:02:03]} 14. Nxd7 {[%clk 0:02:35]}  Nxd7 {[%clk 0:02:01]} 15. Bxd6 {[%clk 0:02:35]}  Qxd6 {[%clk 0:02:01]} 16. Kg1 {[%clk 0:02:34]}  Nf6 {[%clk 0:02:01]} 17. a3 {[%clk 0:02:32]}  g6 {[%clk 0:02:01]} 18. Qc2 {[%clk 0:02:28]}  Ng4 {[%clk 0:02:00]} 19. g3 {[%clk 0:02:28]}  h5 {[%clk 0:01:57]} 20. Bf1 {[%clk 0:02:26]}  h4 {[%clk 0:01:54]} 21. Bg2 {[%clk 0:02:23]}  hxg3 {[%clk 0:01:53]} 22. hxg3 {[%clk 0:02:23]}  Kg7 {[%clk 0:01:54]} 23. d5 {[%clk 0:02:21]}  c5 {[%clk 0:01:53]} 24. Qc3+ {[%clk 0:02:21]}  f6 {[%clk 0:01:53]} 25. Rac1 {[%clk 0:02:16]}  b6 {[%clk 0:01:53]} 26. b4 {[%clk 0:02:16]}  Rc8 {[%clk 0:01:48]} 27. bxc5 {[%clk 0:02:10]}  Rxc5 {[%clk 0:01:48]} 28. Qb4 {[%clk 0:02:10]}  Ne5 {[%clk 0:01:40]} 29. Rxc5 {[%clk 0:02:07]}  bxc5 {[%clk 0:01:39]} 30. Qc3 {[%clk 0:01:43]}  Rc8 {[%clk 0:01:23]} 31. f4 {[%clk 0:01:40]}  Ng4 {[%clk 0:01:22]} 32. Bf3 {[%clk 0:01:39]}  Nh6 {[%clk 0:01:20]} 33. e4 {[%clk 0:01:39]}  Nf7 {[%clk 0:01:14]} 34. Kg2 {[%clk 0:01:38]}  c4 {[%clk 0:01:13]} 35. Re1 {[%clk 0:01:37]}  Qc5 {[%clk 0:00:56]} 36. e5 {[%clk 0:01:35]}  fxe5 {[%clk 0:00:56]} 37. fxe5 {[%clk 0:01:35]}  Ng5 {[%clk 0:00:50]} 38. e6+ {[%clk 0:01:33]}  Kg8 {[%clk 0:00:50]} 39. Rh1 {[%clk 0:01:30]} 1-0


[Site "https://www.chess.com"]

[Event "Titled Tuesday Blitz May 03 Early 2022"]
[White "Trost, Edvin"]
[Black "Obolenskikh, Dmitry"]
[WhiteFideId "1729519"]
[BlackFideId "4156013"]
[WhiteElo "2160"]
[BlackElo "2512"]
[Result "1/2-1/2"]
[Round "03"]
[TimeControl "180+1"]
[Date "2022.05.03"]
[WhiteClock "0:00:06"]
[BlackClock "0:00:15"]

1. d4 {[%clk 0:02:58]}  d5 {[%clk 0:02:58]} 2. c4 {[%clk 0:02:56]}  e6 {[%clk 0:02:58]} 3. Nc3 {[%clk 0:02:55]}  Nf6 {[%clk 0:02:58]} 4. Bg5 {[%clk 0:02:51]}  Be7 {[%clk 0:02:57]} 5. e3 {[%clk 0:02:51]}  h6 {[%clk 0:02:54]} 6. Bh4 {[%clk 0:02:51]}  O-O {[%clk 0:02:53]} 7. cxd5 {[%clk 0:02:45]}  Nxd5 {[%clk 0:02:53]} 8. Bxe7 {[%clk 0:02:40]}  Qxe7 {[%clk 0:02:53]} 9. Nxd5 {[%clk 0:02:40]}  exd5 {[%clk 0:02:54]} 10. Bd3 {[%clk 0:02:41]}  Nd7 {[%clk 0:02:47]} 11. Ne2 {[%clk 0:02:38]}  Nf6 {[%clk 0:02:46]} 12. O-O {[%clk 0:02:39]}  Bg4 {[%clk 0:02:46]} 13. Rc1 {[%clk 0:02:35]}  c6 {[%clk 0:02:45]} 14. Qd2 {[%clk 0:02:33]}  Bxe2 {[%clk 0:02:45]} 15. Qxe2 {[%clk 0:02:34]}  Rfe8 {[%clk 0:02:43]} 16. Qd2 {[%clk 0:02:31]}  a5 {[%clk 0:02:42]} 17. Rc5 {[%clk 0:02:27]}  a4 {[%clk 0:02:39]} 18. a3 {[%clk 0:02:27]}  Qd6 {[%clk 0:02:33]} 19. h3 {[%clk 0:02:25]}  Nd7 {[%clk 0:02:25]} 20. Rc2 {[%clk 0:02:23]}  h5 {[%clk 0:02:08]} 21. Rd1 {[%clk 0:02:08]}  g6 {[%clk 0:02:08]} 22. h4 {[%clk 0:01:57]}  Kg7 {[%clk 0:02:08]} 23. g3 {[%clk 0:01:57]}  Nf6 {[%clk 0:02:06]} 24. Kg2 {[%clk 0:01:57]}  Nd7 {[%clk 0:01:58]} 25. Re1 {[%clk 0:01:54]}  Re6 {[%clk 0:01:57]} 26. Rcc1 {[%clk 0:01:52]}  Rae8 {[%clk 0:01:52]} 27. Qd1 {[%clk 0:01:52]}  b5 {[%clk 0:01:51]} 28. Rc2 {[%clk 0:01:50]}  Nb6 {[%clk 0:01:51]} 29. Rc5 {[%clk 0:01:48]}  Nc4 {[%clk 0:01:49]} 30. Bxc4 {[%clk 0:01:48]}  dxc4 {[%clk 0:01:48]} 31. Rh1 {[%clk 0:01:25]}  f5 {[%clk 0:01:41]} 32. Qf3 {[%clk 0:01:23]}  Re4 {[%clk 0:01:38]} 33. Rc1 {[%clk 0:01:15]}  R8e6 {[%clk 0:01:25]} 34. Rf1 {[%clk 0:01:03]}  Rf6 {[%clk 0:01:25]} 35. Qd1 {[%clk 0:01:02]}  Qe7 {[%clk 0:01:23]} 36. Qd2 {[%clk 0:01:01]}  Rd6 {[%clk 0:01:22]} 37. Qa5 {[%clk 0:01:00]}  Qd7 {[%clk 0:01:21]} 38. Qb6 {[%clk 0:00:58]}  Ree6 {[%clk 0:01:18]} 39. Rd1 {[%clk 0:00:56]}  Rd5 {[%clk 0:01:18]} 40. Kg1 {[%clk 0:00:43]}  Rxc5 {[%clk 0:01:17]} 41. Qxc5 {[%clk 0:00:43]}  Rd6 {[%clk 0:01:16]} 42. Qe5+ {[%clk 0:00:43]}  Kh7 {[%clk 0:01:13]} 43. Re1 {[%clk 0:00:43]}  Qe6 {[%clk 0:01:04]} 44. Qf4 {[%clk 0:00:36]}  Qd5 {[%clk 0:00:59]} 45. Kh2 {[%clk 0:00:35]}  Re6 {[%clk 0:00:57]} 46. Qc7+ {[%clk 0:00:34]}  Kh6 {[%clk 0:00:58]} 47. Qf4+ {[%clk 0:00:34]}  Kg7 {[%clk 0:00:58]} 48. Qc7+ {[%clk 0:00:35]}  Kf6 {[%clk 0:00:57]} 49. Qh7 {[%clk 0:00:30]}  Qd8 {[%clk 0:00:51]} 50. Qh6 {[%clk 0:00:26]}  Re8 {[%clk 0:00:47]} 51. Qg5+ {[%clk 0:00:25]}  Kg7 {[%clk 0:00:46]} 52. Qf4 {[%clk 0:00:26]}  Qd7 {[%clk 0:00:44]} 53. Kg1 {[%clk 0:00:19]}  Re4 {[%clk 0:00:43]} 54. Qb8 {[%clk 0:00:19]}  Qe7 {[%clk 0:00:40]} 55. Rf1 {[%clk 0:00:19]}  f4 {[%clk 0:00:36]} 56. gxf4 {[%clk 0:00:13]}  Qxh4 {[%clk 0:00:31]} 57. Qc7+ {[%clk 0:00:13]}  Kh6 {[%clk 0:00:29]} 58. Qxc6 {[%clk 0:00:12]}  Qg4+ {[%clk 0:00:29]} 59. Kh2 {[%clk 0:00:11]}  Qh4+ {[%clk 0:00:25]} 60. Kg2 {[%clk 0:00:12]}  Qg4+ {[%clk 0:00:25]} 61. Kh2 {[%clk 0:00:12]}  Qf3 {[%clk 0:00:24]} 62. Qa8 {[%clk 0:00:09]}  Kg7 {[%clk 0:00:24]} 63. Qb7+ {[%clk 0:00:09]}  Kf6 {[%clk 0:00:24]} 64. Qc6+ {[%clk 0:00:09]}  Kf5 {[%clk 0:00:18]} 65. Qxb5+ {[%clk 0:00:09]}  Kf6 {[%clk 0:00:16]} 66. Qc6+ {[%clk 0:00:09]}  Kf5 {[%clk 0:00:16]} 67. Qd5+ {[%clk 0:00:08]}  Kf6 {[%clk 0:00:16]} 68. Qc6+ {[%clk 0:00:06]}  Kf5 {[%clk 0:00:15]} 69. Qd7+ {[%clk 0:00:07]}  Kf6 {[%clk 0:00:15]} 70. Qd8+ {[%clk 0:00:07]}  Kf7 {[%clk 0:00:15]} 71. Qc7+ {[%clk 0:00:06]}  Kf6 {[%clk 0:00:15]} 72. Qc6+ {[%clk 0:00:06]} 1/2-1/2


[Site "https://www.chess.com"]

[Event "Titled Tuesday Blitz May 03 Early 2022"]
[White "Urbina Perez, Juan Antonio"]
[Black "Schut, Han"]
[WhiteFideId "2217368"]
[BlackFideId "1005561"]
[WhiteElo "2192"]
[BlackElo "2057"]
[Result "1-0"]
[Round "03"]
[TimeControl "180+1"]
[Date "2022.05.03"]
[WhiteClock "0:00:47"]
[BlackClock "0:00:01"]

1. d4 {[%clk 0:02:59]}  Nf6 {[%clk 0:02:52]} 2. c4 {[%clk 0:02:58]}  g6 {[%clk 0:02:52]} 3. Nc3 {[%clk 0:02:57]}  d5 {[%clk 0:02:52]} 4. Nf3 {[%clk 0:02:56]}  Bg7 {[%clk 0:02:52]} 5. Bf4 {[%clk 0:02:55]}  O-O {[%clk 0:02:52]} 6. e3 {[%clk 0:02:56]}  c5 {[%clk 0:02:52]} 7. cxd5 {[%clk 0:02:55]}  Nxd5 {[%clk 0:02:51]} 8. Nxd5 {[%clk 0:02:54]}  Qxd5 {[%clk 0:02:50]} 9. dxc5 {[%clk 0:02:45]}  Qxd1+ {[%clk 0:02:43]} 10. Rxd1 {[%clk 0:02:45]}  Bxb2 {[%clk 0:02:43]} 11. Bb5 {[%clk 0:02:46]}  Bc3+ {[%clk 0:02:32]} 12. Ke2 {[%clk 0:02:45]}  a6 {[%clk 0:02:23]} 13. Ba4 {[%clk 0:02:43]}  Be6 {[%clk 0:02:23]} 14. Bb3 {[%clk 0:02:35]}  Bg4 {[%clk 0:02:17]} 15. Rd3 {[%clk 0:02:32]}  Bf6 {[%clk 0:02:09]} 16. h3 {[%clk 0:02:27]}  Bxf3+ {[%clk 0:01:56]} 17. gxf3 {[%clk 0:02:28]}  Nc6 {[%clk 0:01:54]} 18. Rd7 {[%clk 0:02:25]}  Rac8 {[%clk 0:01:25]} 19. Rc1 {[%clk 0:01:54]}  Na5 {[%clk 0:01:24]} 20. Bd5 {[%clk 0:01:51]}  Rfd8 {[%clk 0:00:41]} 21. Rxd8+ {[%clk 0:01:48]}  Rxd8 {[%clk 0:00:41]} 22. Be4 {[%clk 0:01:48]}  e5 {[%clk 0:00:33]} 23. Bg3 {[%clk 0:01:45]}  Rc8 {[%clk 0:00:33]} 24. f4 {[%clk 0:01:40]}  Be7 {[%clk 0:00:31]} 25. fxe5 {[%clk 0:01:37]}  Rxc5 {[%clk 0:00:31]} 26. Rxc5 {[%clk 0:01:35]}  Bxc5 {[%clk 0:00:32]} 27. Bh4 {[%clk 0:01:33]}  b5 {[%clk 0:00:22]} 28. Bd5 {[%clk 0:01:29]}  Nc4 {[%clk 0:00:13]} 29. e6 {[%clk 0:01:18]}  fxe6 {[%clk 0:00:12]} 30. Bxe6+ {[%clk 0:01:19]}  Kf8 {[%clk 0:00:12]} 31. Bf6 {[%clk 0:01:12]}  Nd6 {[%clk 0:00:09]} 32. Bd5 {[%clk 0:01:07]}  b4 {[%clk 0:00:06]} 33. e4 {[%clk 0:01:03]}  Nb5 {[%clk 0:00:05]} 34. f4 {[%clk 0:00:59]}  a5 {[%clk 0:00:05]} 35. Kd3 {[%clk 0:00:59]}  Nc7 {[%clk 0:00:03]} 36. Bc4 {[%clk 0:00:57]}  Ne8 {[%clk 0:00:03]} 37. Bg5 {[%clk 0:00:55]}  Be7 {[%clk 0:00:04]} 38. Bh6+ {[%clk 0:00:54]}  Ng7 {[%clk 0:00:03]} 39. Kd4 {[%clk 0:00:49]}  a4 {[%clk 0:00:03]} 40. Ke5 {[%clk 0:00:48]}  Bh4 {[%clk 0:00:01]} 41. f5 {[%clk 0:00:47]} 1-0


[Site "https://www.chess.com"]

[Event "Titled Tuesday Blitz May 03 Early 2022"]
[White "Valle Maytin, Luis Enrique"]
[Black "Rosen, Eric"]
[WhiteFideId "3503666"]
[BlackFideId "2032562"]
[WhiteElo "2303"]
[BlackElo "2362"]
[Result "0-1"]
[Round "03"]
[TimeControl "180+1"]
[Date "2022.05.03"]
[WhiteClock "0:01:05"]
[BlackClock "0:01:52"]

1. e4 {[%clk 0:03:00]}  e5 {[%clk 0:03:00]} 2. Nf3 {[%clk 0:02:56]}  Nf6 {[%clk 0:03:00]} 3. Nxe5 {[%clk 0:02:56]}  Nc6 {[%clk 0:03:00]} 4. Nxc6 {[%clk 0:02:55]}  dxc6 {[%clk 0:03:01]} 5. Nc3 {[%clk 0:02:55]}  Bc5 {[%clk 0:03:02]} 6. Be2 {[%clk 0:02:50]}  h5 {[%clk 0:03:02]} 7. d3 {[%clk 0:02:42]}  Ng4 {[%clk 0:03:02]} 8. Bxg4 {[%clk 0:02:40]}  hxg4 {[%clk 0:03:03]} 9. Bf4 {[%clk 0:02:40]}  Qf6 {[%clk 0:02:56]} 10. Bg3 {[%clk 0:02:38]}  Be6 {[%clk 0:02:55]} 11. a3 {[%clk 0:02:33]}  O-O-O {[%clk 0:02:55]} 12. Qe2 {[%clk 0:02:33]}  Bd4 {[%clk 0:02:55]} 13. Qd2 {[%clk 0:02:31]}  Rh5 {[%clk 0:02:54]} 14. O-O {[%clk 0:02:11]}  Rdh8 {[%clk 0:02:54]} 15. Qf4 {[%clk 0:02:11]}  Qe7 {[%clk 0:02:26]} 16. Qd2 {[%clk 0:02:05]}  f6 {[%clk 0:02:10]} 17. Rae1 {[%clk 0:01:28]}  g5 {[%clk 0:02:03]} 18. e5 {[%clk 0:01:19]}  Rxh2 {[%clk 0:01:52]} 19. Bxh2 {[%clk 0:01:05]}  Qh7 {[%clk 0:01:52]} 0-1


[Site "https://www.chess.com"]

[Event "Titled Tuesday Blitz May 03 Early 2022"]
[White "Vignesh, N R"]
[Black "Hansen, Eric"]
[WhiteFideId "25012215"]
[BlackFideId "2606771"]
[WhiteElo "2363"]
[BlackElo "2568"]
[Result "0-1"]
[Round "03"]
[TimeControl "180+1"]
[Date "2022.05.03"]
[WhiteClock "0:00:24"]
[BlackClock "0:00:30"]

1. d4 {[%clk 0:03:00]}  Nf6 {[%clk 0:03:00]} 2. c4 {[%clk 0:02:59]}  e6 {[%clk 0:03:00]} 3. Nf3 {[%clk 0:02:57]}  b6 {[%clk 0:02:59]} 4. g3 {[%clk 0:02:56]}  Ba6 {[%clk 0:02:54]} 5. b3 {[%clk 0:02:55]}  Bb4+ {[%clk 0:02:54]} 6. Bd2 {[%clk 0:02:54]}  Be7 {[%clk 0:02:54]} 7. Nc3 {[%clk 0:02:54]}  d5 {[%clk 0:02:52]} 8. cxd5 {[%clk 0:02:53]}  exd5 {[%clk 0:02:53]} 9. Bg2 {[%clk 0:02:53]}  O-O {[%clk 0:02:52]} 10. O-O {[%clk 0:02:53]}  c6 {[%clk 0:02:51]} 11. a3 {[%clk 0:02:51]}  Re8 {[%clk 0:02:51]} 12. b4 {[%clk 0:02:51]}  Nbd7 {[%clk 0:02:45]} 13. b5 {[%clk 0:02:47]}  Bxb5 {[%clk 0:02:35]} 14. Nxb5 {[%clk 0:02:38]}  cxb5 {[%clk 0:02:35]} 15. Qb3 {[%clk 0:02:37]}  a6 {[%clk 0:02:35]} 16. Ne5 {[%clk 0:02:36]}  Nxe5 {[%clk 0:02:34]} 17. dxe5 {[%clk 0:02:35]}  Ne4 {[%clk 0:02:34]} 18. Be3 {[%clk 0:02:26]}  Bc5 {[%clk 0:02:29]} 19. Rfd1 {[%clk 0:02:23]}  Rxe5 {[%clk 0:02:28]} 20. Bd4 {[%clk 0:01:52]}  Bxd4 {[%clk 0:02:10]} 21. Rxd4 {[%clk 0:01:52]}  Qf6 {[%clk 0:02:10]} 22. Bf3 {[%clk 0:01:45]}  g6 {[%clk 0:02:03]} 23. Rad1 {[%clk 0:01:44]}  Rc8 {[%clk 0:01:28]} 24. Rxd5 {[%clk 0:01:30]}  Rxd5 {[%clk 0:01:19]} 25. Qxd5 {[%clk 0:01:29]}  Nc5 {[%clk 0:01:05]} 26. Rd4 {[%clk 0:01:13]}  Qe7 {[%clk 0:00:54]} 27. h4 {[%clk 0:01:07]}  h5 {[%clk 0:00:50]} 28. Kg2 {[%clk 0:00:49]}  Ne6 {[%clk 0:00:48]} 29. Re4 {[%clk 0:00:43]}  Rd8 {[%clk 0:00:48]} 30. Qc6 {[%clk 0:00:41]}  Qd6 {[%clk 0:00:45]} 31. Qc3 {[%clk 0:00:40]}  Nc5 {[%clk 0:00:43]} 32. Re3 {[%clk 0:00:38]}  Qd4 {[%clk 0:00:37]} 33. Qc2 {[%clk 0:00:36]}  Kg7 {[%clk 0:00:35]} 34. Rc3 {[%clk 0:00:35]}  Qd2 {[%clk 0:00:33]} 35. Rxc5 {[%clk 0:00:31]}  bxc5 {[%clk 0:00:33]} 36. Qxc5 {[%clk 0:00:32]}  Qd6 {[%clk 0:00:30]} 37. Qc3+ {[%clk 0:00:32]}  Qf6 {[%clk 0:00:30]} 38. Qc2 {[%clk 0:00:30]}  Rd4 {[%clk 0:00:31]} 39. e3 {[%clk 0:00:24]}  Ra4 {[%clk 0:00:30]} 40. Qb3 {[%clk 0:00:24]}  Qa1 {[%clk 0:00:30]} 0-1


[Site "https://www.chess.com"]

[Event "Titled Tuesday Blitz May 03 Early 2022"]
[White "Vysochin, Spartak"]
[Black "Shimanov, Aleksandr"]
[WhiteFideId "14103516"]
[BlackFideId "4198603"]
[WhiteElo "2385"]
[BlackElo "2636"]
[Result "1-0"]
[Round "03"]
[TimeControl "180+1"]
[Date "2022.05.03"]
[WhiteClock "0:00:03"]
[BlackClock "0:00:04"]

1. e4 {[%clk 0:02:55]}  d5 {[%clk 0:02:53]} 2. Nc3 {[%clk 0:02:54]}  d4 {[%clk 0:02:51]} 3. Nce2 {[%clk 0:02:48]}  e5 {[%clk 0:02:50]} 4. Ng3 {[%clk 0:02:46]}  Be6 {[%clk 0:02:50]} 5. Bb5+ {[%clk 0:02:43]}  Nd7 {[%clk 0:02:37]} 6. Bxd7+ {[%clk 0:02:40]}  Qxd7 {[%clk 0:02:37]} 7. d3 {[%clk 0:02:41]}  Ne7 {[%clk 0:02:33]} 8. N1e2 {[%clk 0:02:37]}  h5 {[%clk 0:02:30]} 9. h3 {[%clk 0:02:34]}  h4 {[%clk 0:02:23]} 10. Nf1 {[%clk 0:02:33]}  c5 {[%clk 0:02:22]} 11. Nh2 {[%clk 0:02:32]}  f6 {[%clk 0:02:09]} 12. f4 {[%clk 0:02:30]}  Nc6 {[%clk 0:02:10]} 13. O-O {[%clk 0:02:27]}  Bd6 {[%clk 0:02:09]} 14. f5 {[%clk 0:02:23]}  Bf7 {[%clk 0:02:09]} 15. Nf3 {[%clk 0:02:15]}  c4 {[%clk 0:02:06]} 16. a3 {[%clk 0:02:13]}  cxd3 {[%clk 0:01:59]} 17. cxd3 {[%clk 0:02:12]}  Na5 {[%clk 0:02:00]} 18. Nd2 {[%clk 0:02:08]}  Qb5 {[%clk 0:01:55]} 19. b4 {[%clk 0:02:01]}  Nc6 {[%clk 0:01:55]} 20. Nf3 {[%clk 0:01:58]}  a5 {[%clk 0:01:54]} 21. a4 {[%clk 0:01:42]}  Qb6 {[%clk 0:01:45]} 22. b5 {[%clk 0:01:41]}  Nb4 {[%clk 0:01:45]} 23. Ba3 {[%clk 0:01:24]}  Ke7 {[%clk 0:01:36]} 24. Bxb4 {[%clk 0:01:22]}  axb4 {[%clk 0:01:36]} 25. Qe1 {[%clk 0:01:14]}  Rac8 {[%clk 0:01:20]} 26. Nxh4 {[%clk 0:01:10]}  Rc3 {[%clk 0:01:10]} 27. Rd1 {[%clk 0:01:02]}  Rc2 {[%clk 0:01:03]} 28. Ng6+ {[%clk 0:01:00]}  Bxg6 {[%clk 0:01:03]} 29. fxg6 {[%clk 0:01:00]}  Rh6 {[%clk 0:00:49]} 30. Ng3 {[%clk 0:00:57]}  Rxg6 {[%clk 0:00:49]} 31. Rf2 {[%clk 0:00:44]}  Rxg3 {[%clk 0:00:33]} 32. Rxc2 {[%clk 0:00:43]}  Re3 {[%clk 0:00:34]} 33. Qh4 {[%clk 0:00:29]}  b3 {[%clk 0:00:25]} 34. Rf2 {[%clk 0:00:29]}  Qd8 {[%clk 0:00:20]} 35. Qg4 {[%clk 0:00:23]}  Qg8 {[%clk 0:00:19]} 36. a5 {[%clk 0:00:22]}  Ba3 {[%clk 0:00:17]} 37. a6 {[%clk 0:00:22]}  bxa6 {[%clk 0:00:17]} 38. bxa6 {[%clk 0:00:23]}  b2 {[%clk 0:00:17]} 39. a7 {[%clk 0:00:23]}  Rxd3 {[%clk 0:00:17]} 40. a8=Q {[%clk 0:00:17]}  Rxd1+ {[%clk 0:00:16]} 41. Kh2 {[%clk 0:00:16]}  Qxa8 {[%clk 0:00:13]} 42. Qxg7+ {[%clk 0:00:16]}  Ke8 {[%clk 0:00:08]} 43. Rxf6 {[%clk 0:00:07]}  Be7 {[%clk 0:00:06]} 44. Qg8+ {[%clk 0:00:06]}  Kd7 {[%clk 0:00:06]} 45. Qxa8 {[%clk 0:00:05]}  Rh1+ {[%clk 0:00:05]} 46. Kg3 {[%clk 0:00:05]}  b1=Q {[%clk 0:00:03]} 47. Qc6+ {[%clk 0:00:04]}  Kd8 {[%clk 0:00:03]} 48. Qa8+ {[%clk 0:00:04]}  Kd7 {[%clk 0:00:02]} 49. Qc6+ {[%clk 0:00:04]}  Kd8 {[%clk 0:00:03]} 50. Qa8+ {[%clk 0:00:03]}  Kc7 {[%clk 0:00:03]} 51. Rc6+ {[%clk 0:00:02]}  Kd7 {[%clk 0:00:04]} 52. Qc8# {[%clk 0:00:03]} 1-0


[Site "https://www.chess.com"]